Workbook

Sheet NSU
B1: Johanna Hihnala | E1: 21.4.1994 Kalajoki
B2: SUPERPESIS | E2: Runkosarja | I2: Kärkilyönnit (KL), pesänvälit | P2: Ylempi loppusarja | U2: Alempi loppusarja | AB2: Arvo-ottelut ja mitalit
B3: Vuosi | C3: Sija | D3: Seura | E3: OTT | F3: KUN | G3: LÖI | H3: TOI | I3: KL | J3: 0 > 1 | K3: 1 > 2 | L3: 2 > 3 | M3: 3 > k | N3: KL-% | P3: OTT | Q3: KUN | R3: LÖI | S3: TOI | T3: KL | U3: OTT | V3: KUN | W3: LÖI | X3: TOI | Y3: KL | Z3: IL | AA3: LL | AB3: Halli | AC3: K | AD3: H | AE3: P
B4: 2011 | C4: 3. | D4: Pilke | F4: ykköspesis
B5: 2012 | C5: 6. | D5: HP-K | F5: suomensarja
B6: 2012 | C6: 6. | D6: Pilke | F6: ykköspesis
B7: 2013 | C7: 4. | D7: SiSi | F7: suomensarja
B8: ****
B9: 2018 | C9: 3. | D9: JoMa | F9: ykköspesis
B10: 2019 | C10: 1. | D10: JoMa | F10: ykköspesis
B11: 2020 | C11: 9. | D11: JoMa | E11: 20 | F11: 1 | G11: 0 | H11: 22 | I11: 54 | J11: 49 | K11: 3 | L11: 1 | M11: 1 | N11: 46.2 % | O11: 117
B12: 2021 | C12: 9. | D12: JoMa | E12: 21 | F12: 0 | G12: 1 | H12: 25 | I12: 55 | J12: 50 | K12: 4 | L12: 0 | M12: 1 | N12: 60.4 % | O12: 91
B13: 2022 | C13: 10. | D13: KeKi | E13: 17 | F13: 0 | G13: 1 | H13: 14 | I13: 44 | J13: 40 | K13: 2 | L13: 1 | M13: 1 | N13: 53.0 % | O13: 83
B14: 2023 | C14: 12. | D14: KeKi | E14: 20 | F14: 0 | G14: 1 | H14: 6 | I14: 36 | J14: 33 | K14: 2 | L14: 0 | M14: 1 | N14: 52.9 % | O14: 68 | U14: 1 | V14: 0 | W14: 0 | X14: 1 | Y14: 2
B15: Yhteensä | E15: =SUM(E4:E14) -> 78 | F15: 1 | G15: 3 | H15: 67 | I15: 189 | J15: 172 | K15: 11 | L15: 2 | M15: 4 | N15: =PRODUCT(I15/O15) -> 52.6 % | O15: =SUM(O1:O14) -> 359 | P15: =SUM(P4:P14) -> 0 | Q15: 0 | R15: 0 | S15: 0 | T15: 0 | U15: 1 | V15: 0 | W15: 0 | X15: 1 | Y15: 2 | Z15: 0 | AA15: 0 | AB15: 0 | AC15: 0 | AD15: 0 | AE15: 0
B16: Pesispörssi | D16: =SUM(F15:H15)+((I15-F15-G15)/3)+(E15/3)+(Z15*25)+(AA15*25)+(AB15*10)+(AC15*25)+(AD15*20)+(AE15*15) -> 158.7
B18: URA SUPERISSA | E18: OTT | F18: KUN | G18: LÖI | H18: TOI | I18: KL | K18: ka/L | L18: ka/T | M18: ka/KL | N18: KL - % | P18: ENSIMMÄISET
B19: Runkosarja | E19: =PRODUCT(E15) -> 78 | F19: =PRODUCT(F15) -> 1 | G19: =PRODUCT(G15) -> 3 | H19: =PRODUCT(H15) -> 67 | I19: =PRODUCT(I15) -> 189 | K19: =PRODUCT((F19+G19)/E19) -> 0.05 | L19: =PRODUCT(H19/E19) -> 0.86 | M19: =PRODUCT(I19/E19) -> 2.42 | N19: =PRODUCT(N15) -> 52.6 % | O19: =PRODUCT(O15) -> 359 | P19: Ottelu | R19: 12.06. 2020 Kirittäret - JoMa 2-0 (3-2, 9-2) | AA19: 1. ottelu | AE19: 26 v 1 kk 22 pv
B20: Ylempi loppusarja | P20: Lyöty | R20: 19.08. 2020 JoMa - SiiPe 2-1 ((3-2, 8-9, 2-1) | AA20: 9. ottelu | AE20: 26 v 3 kk 29 pv
B21: Alempi loppusarja | E21: 1 | F21: 0 | G21: 0 | H21: 1 | I21: 2 | K21: 0.05 | L21: 0.86 | M21: 2.42 | N21: =PRODUCT(I21/O21) -> 66.7 % | O21: 3 | P21: Tuotu | R21: 12.06. 2020 Kirittäret - JoMa 2-0 (3-2, 9-2) | AA21: 1. ottelu | AE21: 26 v 1 kk 22 pv
B22: KAIKKI | E22: =SUM(E19:E21) -> 79 | F22: =SUM(F19:F21) -> 1 | G22: =SUM(G19:G21) -> 3 | H22: =SUM(H19:H21) -> 68 | I22: =SUM(I19:I21) -> 191 | K22: =PRODUCT((F22+G22)/E22) -> 0.05 | L22: =PRODUCT(H22/E22) -> 0.86 | M22: =PRODUCT(I22/E22) -> 2.42 | N22: =PRODUCT(I22/O22) -> 52.8 % | O22: =SUM(O19:O21) -> 362 | P22: Kunnari | R22: 19.08. 2020 JoMa - SiiPe 2-1 ((3-2, 8-9, 2-1) | AA22: 9. ottelu | AE22: 26 v 3 kk 29 pv
B24: Seurat | D24: SiSi = Sievin Sisu (1945), kasvattajaseura
D25: Pilke = Reisjärven Pilke (1945)
D26: HP-K = Haapajärven Pesä-Kiilat (1990)
D27: JoMa = Joensuun Maila (1957)
D28: KeKi = Kempeleen Kiri (1915)
